bitfinex-derivatives/quotes_SOLF0:USTF0_20260310
["timestamp","ask_amount","ask_price","bid_price","bid_amount"]
[1773170231619,2.97019849,86.258,86.192,3.75405209]
[1773170233023,176.31953063,86.332,86.196,3.75405209]
[1773170233024,2.96023767,86.273,86.196,3.75405209]
[1773170233213,2.96023767,86.273,86.201,3.75405209]
[1773170233418,10.433,86.257,86.208,10.439]
[1773170233614,2.96023767,86.273,86.201,3.75405209]
[1773170235322,10.435,86.244,86.201,3.75405209]
[1773170235523,2.96242763,86.254,86.201,3.75405209]
[1773170236322,10.435,86.237,86.201,3.75405209]
[1773170236521,10.435,86.237,86.184,3.75405209]
[1773170237322,10.435,86.237,86.184,14.19605209]
[1773170237518,10.435,86.237,86.185,3.75405209]
[1773170237725,10.437,86.227,86.185,3.75405209]
[1773170237923,2.96243374,86.239,86.187,3.75405209]
[1773170238622,2.96243374,86.239,86.197,10.44]
[1773170239222,10.435,86.238,86.187,3.75405209]
[1773170240024,10.435,86.238,86.196,10.44]
[1773170240220,9.24192353,86.26,86.197,3.7314984]
[1773170240221,2.96158905,86.254,86.197,3.7314984]
[1773170241327,13.39458905,86.254,86.209,10.439]
[1773170242129,10.433,86.254,86.212,10.438]
[1773170242327,10.433,86.254,86.212,14.1694984]
[1773170244825,10.434,86.248,86.212,3.7314984]
[1773170245129,2.96157652,86.263,86.212,3.7314984]
[1773170245530,2.95480516,86.28,86.212,3.7314984]
[1773170246230,10.431,86.271,86.228,3.7314984]
[1773170246434,2.95480516,86.299,86.228,3.7314984]
[1773170247428,2.91118121,86.314,86.228,3.7314984]
[1773170247630,2.91118121,86.314,86.24,9.24192353]
[1773170247832,2.91118121,86.314,86.241,3.7314984]
[1773170248427,10.427,86.302,86.258,10.433]
[1773170248928,2.91118121,86.314,86.241,3.7314984]
[1773170250026,2.88045822,86.329,86.258,3.7314984]
[1773170250231,2.88045822,86.329,86.261,3.7314984]
[1773170251337,2.88045822,86.329,86.282,10.43]
[1773170251538,2.88045822,86.329,86.283,3.7314984]
[1773170251732,2.88045822,86.329,86.261,3.7314984]
[1773170252639,2.88045822,86.329,86.282,3.7314984]
[1773170253434,10.424,86.328,86.284,10.43]
[1773170253946,10.424,86.328,86.284,14.1614984]
[1773170254138,2.88045822,86.329,86.286,10.429]
[1773170254344,10.423,86.336,86.286,14.1604984]
[1773170254736,10.423,86.336,86.287,3.7314984]
[1773170255142,10.425,86.326,86.287,3.7314984]
[1773170255440,2.81415319,86.359,86.271,3.7314984]
[1773170255645,13.23915319,86.324,86.271,3.7314984]
[1773170256141,10.426,86.312,86.256,3.7314984]
[1773170256341,10.426,86.312,86.17,28.60930862]
[1773170256342,2.81415319,86.366,86.281,3.7314984]
[1773170256539,459.60303339,86.381,86.281,3.7314984]
[1773170256540,2.85870508,86.359,86.281,3.7314984]
[1773170256837,2.85870508,86.324,86.261,3.7314984]
[1773170258235,10.426,86.318,86.273,10.431]
[1773170258440,13.28470508,86.318,86.273,10.431]
[1773170258643,13.28470508,86.318,86.261,3.7314984]
[1773170259039,10.426,86.314,86.265,10.432]
[1773170259441,2.6582701,86.317,86.261,3.7314984]
[1773170259742,10.426,86.315,86.261,3.7314984]
[1773170260843,2.56235324,86.306,86.261,3.7314984]
[1773170261044,2.56235324,86.306,86.254,10.433]
[1773170261246,2.56235324,86.306,86.245,3.7314984]
[1773170261452,10.429,86.293,86.245,3.7314984]
[1773170261641,2.56235324,86.306,86.245,3.7314984]
[1773170262043,10.429,86.293,86.252,10.434]
[1773170262541,10.427,86.303,86.245,3.7314984]
[1773170262737,2.55521025,86.303,86.245,3.7314984]
[1773170263541,2.55521025,86.318,86.22,9.19884352]
[1773170263750,2.55521025,86.318,86.261,3.7314984]
[1773170264550,2.55521025,86.318,86.263,10.432]
[1773170265139,2.55521025,86.318,86.261,3.7314984]
[1773170265546,2.55521025,86.318,86.263,10.432]
[1773170266440,10.426,86.311,86.263,10.432]
[1773170267347,2.38053561,86.348,86.267,3.83956352]
[1773170267544,2.38053561,86.348,86.281,3.83956352]
[1773170268752,10.421,86.356,86.303,3.83956352]
[1773170269252,2.37610946,86.365,86.286,3.83956352]
[1773170270046,2.37964341,86.351,86.289,4.06141661]
[1773170271044,10.423,86.341,86.294,4.06141661]
[1773170271551,2.44041086,86.367,86.298,4.06141661]
[1773170272447,2.44041086,86.351,86.298,4.06141661]
[1773170273249,10.423,86.341,86.299,10.428]
[1773170273654,10.423,86.341,86.3,3.43330615]
[1773170274450,10.422,86.35,86.302,4.06141661]
[1773170274657,3.43330615,86.36,86.31,7.49472276]
[1773170274856,2.46650387,86.359,86.31,4.06141661]
[1773170275158,3.43330615,86.35,86.31,4.06141661]
[1773170275452,2.46650387,86.348,86.293,4.06141661]
[1773170276049,10.422,86.347,86.303,10.427]
[1773170276557,2.46650387,86.368,86.304,4.06141661]
[1773170277149,2.46650387,86.368,86.322,10.425]
[1773170277857,2.4650612,86.366,86.314,10.426]
[1773170278447,2.4650612,86.355,86.291,4.06141661]
[1773170279453,2.4650612,86.355,86.312,10.426]
[1773170280148,10.421,86.354,86.305,10.427]
[1773170280655,2.45158991,86.353,86.305,10.427]
[1773170281357,2.45158991,86.353,86.291,4.06141661]
[1773170281358,10.423,86.343,86.297,10.428]
[1773170282256,10.422,86.351,86.303,10.427]
[1773170282459,12.92766317,86.351,86.303,10.427]
[1773170282957,12.92766317,86.351,86.291,4.06141661]
[1773170283160,2.51013713,86.35,86.291,4.06141661]
[1773170284254,2.51013713,86.35,86.31,10.426]
[1773170284453,12.93013713,86.362,86.304,4.06141661]
[1773170285456,2.51013713,86.362,86.304,4.06141661]
[1773170285759,2.50290597,86.377,86.304,4.06141661]
[1773170286464,2.50290597,86.379,86.297,4.06141661]
[1773170286653,2.5417876,86.369,86.297,4.06141661]
[1773170287561,10.421,86.356,86.313,10.426]
[1773170289657,2.5417876,86.369,86.32,4.06141661]
[1773170291266,2.54565069,86.389,86.334,4.06141661]
[1773170291859,2.54565069,86.404,86.334,4.06141661]
[1773170292065,2.54565069,86.389,86.311,4.06141661]
[1773170292362,2.54565069,86.369,86.311,4.06141661]
[1773170292969,10.42,86.365,86.32,10.425]
[1773170293468,2.54565069,86.369,86.311,4.06141661]
[1773170293766,10.42,86.368,86.329,10.424]
[1773170294167,10.42,86.368,86.311,4.06141661]
[1773170295068,10.42,86.364,86.311,4.06141661]
[1773170295368,2.52795935,86.367,86.311,4.06141661]
[1773170295567,3.43266097,86.36,86.311,4.06141661]
[1773170295767,12.94795935,86.367,86.323,10.425]
[1773170295967,2.52795935,86.366,86.311,4.06141661]
[1773170297372,2.52795935,86.366,86.322,10.425]
[1773170298272,3.43266097,86.36,86.322,10.425]
[1773170299274,10.421,86.359,86.322,10.425]
[1773170299976,3.43266097,86.38,86.34,3.85310199]
[1773170300171,3.43266097,86.38,86.29,20.858]
[1773170300172,3.43266097,86.38,86.32,3.43266097]
[1773170300369,3.43266097,86.37,86.321,3.85310199]
[1773170301270,10.418,86.38,86.321,3.85310199]
[1773170301477,3.43266097,86.38,86.331,3.85310199]
[1773170302275,5.9304928,86.36,86.315,3.85310199]
[1773170302475,2.4912061,86.359,86.301,3.85310199]
[1773170302680,3.43266097,86.35,86.301,3.85310199]
[1773170302879,2.4912061,86.349,86.301,3.85310199]
[1773170303274,3.43266097,86.36,86.31,3.43266097]
[1773170303478,3.43266097,86.36,86.311,3.85310199]
[1773170303676,3.43266097,86.35,86.311,3.85310199]
[1773170303877,2.4912061,86.365,86.311,3.85310199]
[1773170303878,3.43266097,86.36,86.311,3.85310199]
[1773170304073,10.421,86.359,86.313,10.426]
[1773170304380,3.43266097,86.36,86.311,3.85310199]
[1773170304683,3.43266097,86.37,86.321,3.85310199]
[1773170305283,10.419,86.369,86.326,10.425]
[1773170305481,3.43266097,86.37,86.321,3.85310199]
[1773170305783,2.49967788,86.38,86.321,3.85310199]
[1773170305982,10.419,86.371,86.332,10.424]
[1773170306577,10.419,86.371,86.321,3.85310199]
[1773170307380,10.419,86.371,86.325,10.425]
[1773170307776,10.419,86.371,86.321,3.85310199]
[1773170308378,10.418,86.378,86.331,10.424]
[1773170308578,10.418,86.378,86.321,3.85310199]
[1773170309180,10.418,86.378,86.331,10.424]
[1773170310084,10.419,86.371,86.331,10.424]
[1773170310480,2.50828039,86.35,86.297,3.85310199]
[1773170310685,2.50828039,86.365,86.297,3.85310199]
[1773170311082,10.419,86.374,86.314,3.85310199]
[1773170311480,2.50828039,86.38,86.314,3.85310199]
[1773170311683,2.50828039,86.38,86.301,21.44238117]
[1773170311684,2.50828039,86.38,86.331,3.85310199]
[1773170311877,2.50828039,86.38,86.301,21.44238117]
[1773170311878,2.50828039,86.38,86.302,3.85310199]
[1773170312887,2.5168698,86.372,86.322,10.425]
[1773170313082,2.5168698,86.372,86.316,3.85310199]
[1773170314485,2.5168698,86.37,86.316,3.85310199]
[1773170314686,10.419,86.369,86.316,3.85310199]
[1773170314891,2.51662442,86.368,86.316,3.85310199]
[1773170316487,12.92948521,86.367,86.322,10.425]
[1773170316690,2.50948521,86.366,86.322,10.425]
[1773170317288,2.50948521,86.366,86.293,21.44238117]
[1773170317289,2.50948521,86.382,86.323,3.85310199]
[1773170317587,2.50948521,86.38,86.323,3.85310199]
[1773170317788,2.50948521,86.378,86.323,3.85310199]
[1773170317991,2.50948521,86.376,86.323,3.85310199]
[1773170318192,2.50948521,86.374,86.323,3.85310199]
[1773170318789,2.50948521,86.374,86.331,10.424]
[1773170319192,2.50948521,86.374,86.323,3.85310199]
[1773170319695,20.70701041,86.417,86.29,9.19244351]
[1773170319696,10.418,86.385,86.338,3.85310199]
[1773170319896,8.74542273,86.384,86.338,3.85310199]
[1773170320093,12.92272528,86.389,86.346,10.422]
[1773170320395,2.50572528,86.387,86.346,10.422]
[1773170320891,35.02774995,86.419,86.315,3.85310199]
[1773170320892,2.4954827,86.386,86.315,3.85310199]
[1773170321096,2.4954827,86.384,86.315,3.85310199]
[1773170321292,2.4954827,86.382,86.315,3.85310199]
[1773170321491,2.4954827,86.357,86.315,3.85310199]
[1773170321691,2.4954827,86.357,86.3,3.85310199]
[1773170321984,2.4954827,86.378,86.3,3.85310199]
[1773170322188,10.42,86.361,86.322,10.425]
[1773170322386,10.42,86.361,86.3,3.85310199]
[1773170323397,10.42,86.361,86.315,10.426]
[1773170324194,10.42,86.361,86.322,10.425]
[1773170325698,2.49226487,86.368,86.33,10.424]
[1773170326606,2.46814116,86.389,86.33,10.424]
[1773170326898,2.46814116,86.387,86.33,10.424]
[1773170327207,9.19244351,86.39,86.33,10.424]
[1773170327208,2.46814116,86.385,86.33,10.424]
[1773170327497,10.419,86.369,86.33,10.424]
[1773170327893,10.419,86.369,86.331,3.8447406]
[1773170328102,10.419,86.376,86.333,3.8447406]
[1773170328696,2.46814116,86.383,86.343,10.422]
[1773170330001,10.418,86.381,86.343,10.422]
[1773170330204,10.418,86.381,86.336,14.3140791]
[1773170330401,10.418,86.381,86.337,3.8910791]
[1773170330801,2.46814116,86.383,86.345,10.422]
[1773170333004,2.45820357,86.382,86.337,14.3140791]
[1773170333200,2.45820357,86.379,86.32,3.43178394]
[1773170333405,10.60531267,86.404,86.32,3.43178394]
[1773170333406,16.30898751,86.37,86.324,10.425]
[1773170333903,10.42,86.368,86.33,10.424]
[1773170334204,3.43178394,86.38,86.33,3.8910791]
[1773170334393,8.77640609,86.379,86.33,3.8910791]
[1773170334598,5.9519032,86.38,86.33,3.8910791]
[1773170334794,8.7786225,86.379,86.33,3.8910791]
[1773170334995,5.9519032,86.38,86.33,3.8910791]
[1773170335195,8.77868795,86.379,86.33,3.8910791]
[1773170335400,5.9519032,86.38,86.33,3.8910791]
[1773170335603,2.52011926,86.395,86.343,3.8910791]
[1773170335900,8.78226262,86.394,86.343,3.8910791]
[1773170336102,10.416,86.401,86.356,3.8910791]
[1773170336305,14.73278772,86.4,86.356,3.8910791]
[1773170336606,8.78088452,86.399,86.356,3.8910791]
[1773170336805,10.416,86.397,86.356,3.8910791]
[1773170337903,13.84878394,86.39,86.356,3.8910791]
[1773170338107,3.43178394,86.39,86.356,3.8910791]
[1773170338305,8.7813137,86.398,86.356,3.8910791]
[1773170338506,8.7813137,86.397,86.356,3.8910791]
[1773170338708,8.7813137,86.396,86.356,3.8910791]
[1773170338906,2.51303513,86.399,86.356,3.8910791]
[1773170339102,8.77924909,86.398,86.358,10.421]
[1773170339309,10.415,86.405,86.359,3.8910791]
[1773170339612,8.77835959,86.404,86.359,3.8910791]
[1773170339812,8.77835959,86.403,86.359,3.8910791]
[1773170340011,10.415,86.405,86.359,3.8910791]
[1773170340212,8.77434479,86.404,86.36,13.85178394]
[1773170340410,8.77434479,86.403,86.361,3.8910791]
[1773170340609,8.76954363,86.413,86.381,3.8910791]
[1773170340809,2.55388667,86.436,86.402,10.415]
[1773170341010,2.55388667,86.436,86.391,3.8910791]
[1773170341210,5.98567061,86.45,86.4,7.32286304]
[1773170341511,2.55388667,86.45,86.41,3.43178394]
[1773170341711,2.55388667,86.45,86.407,3.8910791]
[1773170342009,10.411,86.442,86.395,10.416]
[1773170342313,2.55388667,86.439,86.391,3.8910791]
[1773170342513,10.411,86.435,86.392,10.417]
[1773170342906,5.91981321,86.42,86.375,3.8910791]
[1773170343215,5.91981321,86.42,86.278,48.98026222]
[1773170343216,2.48802927,86.419,86.36,3.43178394]
[1773170343415,2.48802927,86.419,86.36,7.32286304]
[1773170343616,2.48802927,86.419,86.361,3.8910791]
[1773170344212,3.43178394,86.41,86.371,10.419]
[1773170344611,10.414,86.411,86.371,10.419]
[1773170344915,12.90102927,86.419,86.371,10.419]
[1773170345119,2.48802927,86.419,86.378,10.418]
[1773170345319,11.63,86.518,86.375,3.8910791]
[1773170345320,5.9399398,86.43,86.375,3.8910791]
[1773170345811,207.43042819,86.468,86.391,3.8910791]
[1773170345812,2.50815586,86.447,86.391,3.8910791]
[1773170346011,2.50815586,86.466,86.391,3.8910791]
[1773170346410,2.50815586,86.458,86.411,10.414]
[1773170346616,2.50815586,86.458,86.391,3.8910791]
[1773170347514,10.409,86.457,86.411,10.414]
[1773170347727,10.409,86.457,86.39,9.18056969]
[1773170347728,2.50815586,86.458,86.391,3.8910791]
[1773170348024,10.411,86.438,86.391,3.8910791]
[1773170348426,2.50723059,86.437,86.374,3.8910791]
[1773170349217,2.52024417,86.426,86.374,3.8910791]
[1773170350427,2.52024417,86.42,86.368,10.419]
[1773170351328,10.414,86.415,86.368,10.419]
[1773170355829,2.47654073,86.406,86.357,3.8910791]
[1773170356530,10.415,86.405,86.357,3.8910791]
[1773170357429,2.47654073,86.406,86.357,3.8910791]
[1773170357932,10.414,86.412,86.357,3.8910791]
[1773170358334,10.415,86.406,86.365,10.42]
[1773170360036,10.416,86.399,86.358,10.421]
[1773170360235,2.47524727,86.421,86.357,3.8910791]
[1773170361336,10.415,86.406,86.364,10.42]
[1773170362536,10.416,86.399,86.357,3.8910791]
[1773170362835,2.49747566,86.398,86.331,4.01955373]
[1773170363037,2.49747566,86.398,86.354,10.421]
[1773170364834,2.49747566,86.398,86.345,4.01955373]
[1773170364835,2.49747566,86.398,86.347,10.422]
[1773170365034,2.49747566,86.398,86.33,4.01955373]
[1773170365433,2.49747566,86.398,86.349,10.422]
[1773170365629,10.417,86.387,86.349,10.422]
[1773170365829,10.417,86.387,86.34,3.43009153]
[1773170365830,8.71886619,86.424,86.345,4.01955373]
[1773170366030,3.43009153,86.4,86.351,4.01955373]
[1773170366232,2.62638835,86.403,86.351,4.01955373]
[1773170366430,2.62638835,86.399,86.354,4.01955373]
[1773170367035,10.416,86.397,86.355,10.421]
[1773170368738,13.84709153,86.39,86.348,10.422]
[1773170369239,2.62638835,86.399,86.351,4.01955373]
[1773170370334,10.416,86.397,86.354,10.421]
[1773170370639,2.62638835,86.399,86.351,4.01955373]
[1773170371330,10.417,86.391,86.352,10.421]
[1773170372336,10.416,86.398,86.352,10.421]
[1773170372542,3.43009153,86.41,86.361,4.01955373]
[1773170372737,3.43009153,86.42,86.361,4.01955373]
[1773170373037,10.411,86.439,86.39,13.84709153]
[1773170373343,2.58490276,86.438,86.381,4.01955373]
[1773170374143,10.411,86.435,86.39,10.417]
[1773170374743,10.411,86.435,86.39,17.86318968]
[1773170375542,2.58490276,86.438,86.397,10.416]
[1773170376742,12.99590276,86.438,86.39,4.01955373]
[1773170376942,3.42663595,86.42,86.375,4.01955373]
[1773170377544,2.60629448,86.429,86.375,4.01955373]
[1773170377938,2.60629448,86.425,86.375,4.01955373]
[1773170378144,2.60629448,86.419,86.375,4.01955373]
[1773170378849,2.60715871,86.409,86.358,4.01955373]
[1773170379249,2.60715871,86.409,86.366,10.42]
[1773170380250,13.02215871,86.409,86.366,10.42]
[1773170380448,2.60715871,86.409,86.373,10.419]
[1773170380947,3.42663595,86.4,86.35,3.42663595]
[1773170381147,2.61956563,86.399,86.35,3.42663595]
[1773170381947,2.61956563,86.399,86.351,4.01955373]
[1773170382253,3.42663595,86.41,86.361,4.01955373]
[1773170383452,3.42663595,86.41,86.363,10.42]
[1773170383453,10.415,86.409,86.363,10.42]
[1773170383947,10.415,86.409,86.363,14.43955373]
[1773170385352,10.415,86.409,86.367,10.42]
[1773170385854,10.416,86.401,86.364,4.01955373]
[1773170386053,3.42663595,86.4,86.364,4.01955373]
[1773170387460,10.415,86.409,86.364,4.01955373]
[1773170387651,10.414,86.416,86.372,10.419]
[1773170387851,2.60680908,86.418,86.364,4.01955373]
[1773170388047,3.42663595,86.41,86.364,4.01955373]
[1773170389359,13.84163595,86.41,86.365,10.42]
[1773170389553,13.84163595,86.41,86.366,3.98875053]
[1773170390355,13.84163595,86.41,86.368,10.419]
[1773170390556,13.84163595,86.41,86.368,14.40775053]
[1773170391357,3.42663595,86.43,86.38,3.42663595]
[1773170391557,2.60341175,86.433,86.381,3.98875053]
[1773170392359,2.60341175,86.433,86.393,10.416]
[1773170392955,10.412,86.432,86.386,14.40575053]
[1773170393151,2.60341175,86.433,86.387,3.98875053]
[1773170394258,3.42663595,86.43,86.387,3.98875053]
[1773170394559,10.413,86.426,86.387,3.98875053]
[1773170395750,13.01159906,86.426,86.38,3.42663595]
[1773170396855,2.59799198,86.425,86.381,10.418]
[1773170397463,2.59799198,86.425,86.385,10.417]
[1773170399961,2.59799198,86.425,86.39,10.417]
[1773170400361,2.59799198,86.425,86.386,3.98875053]
[1773170400362,10.413,86.424,86.386,3.98875053]
[1773170400564,10.60531267,86.455,86.348,20.844]
[1773170400565,2.59668141,86.419,86.374,10.419]
[1773170400965,3.42663595,86.4,86.359,3.98875053]
[1773170401163,3.42663595,86.4,86.366,10.42]
[1773170402569,3.42663595,86.4,86.359,14.40875053]
[1773170402962,10.60531267,86.431,86.351,3.98875053]
[1773170403168,10.60531267,86.431,86.285,196.72149939]
[1773170403169,3.42663595,86.41,86.364,3.98875053]
[1773170403361,2.58789243,86.399,86.35,3.98875053]
[1773170403661,2.58789243,86.399,86.366,10.42]
[1773170403863,2.58789243,86.415,86.37,3.42663595]
[1773170404059,8.74571996,86.429,86.371,3.98875053]
[1773170404368,3.42663595,86.4,86.351,3.98875053]
[1773170406367,10.416,86.398,86.356,10.421]
[1773170406768,10.416,86.398,86.351,3.98875053]
[1773170406961,3.42663595,86.39,86.351,3.98875053]
[1773170407266,3.42663595,86.39,86.352,10.421]
[1773170408267,3.42663595,86.4,86.359,3.98875053]
[1773170408866,3.42663595,86.4,86.359,2.83013623]
[1773170409469,3.42663595,86.4,86.361,10.42]
[1773170410973,3.42663595,86.41,86.369,3.98875053]
[1773170412372,3.61301866,86.399,86.361,10.42]
[1773170413971,3.42663595,86.39,86.352,10.421]
[1773170414171,3.63120887,86.391,86.352,10.421]
[1773170414370,10.416,86.397,86.356,10.421]
[1773170414974,3.42663595,86.39,86.353,3.98875053]
[1773170415669,3.66661766,86.413,86.368,14.40775053]
[1773170415869,3.42663595,86.41,86.368,14.40775053]
[1773170416069,3.66661766,86.408,86.368,3.98875053]
[1773170416274,3.42663595,86.4,86.368,3.98875053]
[1773170417475,14.08161766,86.408,86.37,10.419]
[1773170418880,10.415,86.403,86.362,10.42]
[1773170419982,3.76003347,86.389,86.341,3.74500076]
[1773170420374,3.76003347,86.389,86.354,10.421]
[1773170420876,3.42663595,86.4,86.341,3.74500076]
[1773170421074,7.1783807,86.4,86.341,3.74500076]
[1773170422481,10.417,86.391,86.352,10.421]
[1773170422972,10.417,86.391,86.322,21.44238117]
[1773170422973,3.42663595,86.4,86.357,3.74500076]
[1773170423178,8.73633133,86.409,86.357,3.74500076]
[1773170423378,8.73633133,86.408,86.357,3.74500076]
[1773170423579,3.42663595,86.4,86.361,10.42]
[1773170423779,3.42663595,86.4,86.35,3.42663595]
[1773170423780,3.81059535,86.389,86.341,3.74500076]
[1773170424787,3.90533863,86.379,86.327,3.74500076]
[1773170424982,3.42663595,86.37,86.327,3.74500076]
[1773170426386,3.42663595,86.37,86.331,14.16900076]
[1773170426688,3.42663595,86.37,86.332,3.74500076]
[1773170427384,3.90533863,86.369,86.327,10.424]
[1773170427788,3.90533863,86.369,86.327,3.74500076]
[1773170427987,10.60531267,86.41,86.327,3.74500076]
[1773170427988,10.419,86.377,86.334,10.424]
[1773170428690,8.74322532,86.397,86.343,3.74500076]
[1773170428691,8.74322532,86.396,86.343,3.74500076]
[1773170428887,3.87638573,86.397,86.351,3.74500076]
[1773170429086,8.76089301,86.396,86.369,10.419]
[1773170429289,8.76089301,86.396,86.29,34.77]
[1773170429290,8.76089301,86.412,86.366,3.74500076]
[1773170429491,14.29038573,86.413,86.366,3.74500076]
[1773170429690,14.29038573,86.413,86.369,10.419]
[1773170429984,10.415,86.409,86.369,10.419]
[1773170430284,10.415,86.409,86.369,14.16400076]
[1773170430489,10.415,86.409,86.325,20.85]
[1773170430490,3.87638573,86.412,86.373,14.16400076]
[1773170432294,3.87638573,86.412,86.373,10.419]
[1773170432597,3.85424053,86.389,86.333,3.74500076]
[1773170432795,3.85424053,86.389,86.341,3.74500076]
[1773170433893,3.85424053,86.379,86.324,3.74500076]
[1773170434997,3.42663595,86.37,86.331,10.424]
[1773170435696,10.419,86.369,86.331,10.424]
[1773170436091,10.419,86.369,86.286,20.859]
[1773170436092,3.43172028,86.35,86.306,3.74500076]
[1773170436397,3.85780573,86.359,86.306,3.74500076]
[1773170436596,3.85780573,86.359,86.315,10.426]
[1773170436796,3.84617517,86.349,86.306,3.74500076]
[1773170436999,3.43172028,86.34,86.291,3.74500076]
[1773170437196,3.84617517,86.339,86.293,10.429]
[1773170437398,3.43172028,86.33,86.291,3.74500076]
[1773170438391,3.84617517,86.339,86.291,3.74500076]
[1773170438593,3.43172028,86.35,86.301,3.74500076]
[1773170438796,3.84478176,86.359,86.301,3.74500076]
[1773170438995,3.43172028,86.35,86.307,3.74500076]
[1773170439599,13.85372028,86.35,86.307,3.74500076]
[1773170439801,3.43172028,86.34,86.29,7.17672104]
[1773170439991,3.43172028,86.34,86.291,3.74500076]
[1773170440395,3.84478176,86.329,86.276,3.74500076]
[1773170440595,3.43172028,86.32,86.276,3.74500076]
[1773170441401,3.43172028,86.33,86.281,3.74500076]
[1773170441897,3.83546656,86.344,86.295,10.428]
[1773170442197,3.83546656,86.344,86.28,3.43172028]
[1773170442198,3.43172028,86.33,86.28,3.43172028]
[1773170442405,3.43172028,86.33,86.195,34.47749939]
[1773170442406,3.43172028,86.3,86.251,3.74500076]
[1773170442699,3.86168323,86.343,86.281,3.74500076]
[1773170442900,3.86168323,86.329,86.27,3.43172028]
[1773170443096,3.86168323,86.329,86.266,3.74500076]
[1773170443097,3.43172028,86.31,86.269,10.431]
[1773170443797,3.43172028,86.31,86.266,3.74500076]
[1773170444698,3.43172028,86.32,86.273,3.74500076]
[1773170445403,3.43172028,86.31,86.273,3.74500076]
[1773170445698,3.43172028,86.32,86.273,3.74500076]
[1773170445904,3.43172028,86.31,86.273,3.74500076]
[1773170446104,3.43172028,86.3,86.255,3.74500076]
[1773170446300,3.43172028,86.28,86.231,3.74500076]
[1773170446807,3.43172028,86.27,86.234,3.91308686]
[1773170446999,3.82698943,86.269,86.219,3.91308686]
[1773170447204,3.43172028,86.26,86.219,3.91308686]
[1773170447601,3.82698943,86.269,86.219,3.91308686]
[1773170447899,3.82698943,86.269,86.205,3.91308686]
[1773170448100,3.82698943,86.259,86.181,3.91308686]
[1773170448505,3.82698943,86.239,86.181,3.91308686]
[1773170448708,3.82312716,86.257,86.181,3.91308686]
[1773170448905,3.82312716,86.279,86.181,3.91308686]
[1773170449305,3.82312716,86.279,86.207,3.76264655]
[1773170450303,3.82312716,86.279,86.191,3.76264655]
[1773170450506,3.82137331,86.259,86.191,3.76264655]
[1773170450809,3.82137331,86.259,86.193,3.76264655]
[1773170452713,3.82137331,86.259,86.195,3.76264655]
[1773170453308,3.82137331,86.259,86.198,3.76264655]
[1773170454313,3.82137331,86.259,86.203,10.439]
[1773170454512,3.82137331,86.259,86.204,3.76264655]
[1773170454716,3.9168563,86.279,86.204,3.76264655]
[1773170455017,3.9168563,86.277,86.218,3.76264655]
[1773170455310,3.9168563,86.277,86.171,3.76264655]
[1773170455715,3.9168563,86.259,86.197,3.76264655]
[1773170456515,3.9168563,86.259,86.199,3.76264655]
[1773170457107,9.21541499,86.26,86.199,3.76264655]
[1773170457108,4.00206939,86.257,86.208,10.439]
[1773170457314,4.00206939,86.257,86.199,3.76264655]
[1773170457818,4.00206939,86.247,86.171,3.76264655]
[1773170458119,4.00206939,86.239,86.171,3.76264655]
[1773170458612,4.00206939,86.259,86.193,3.76264655]
[1773170460311,4.00206939,86.259,86.202,10.439]
[1773170460513,4.00206939,86.259,86.16,9.21541499]
[1773170460514,4.00206939,86.259,86.161,3.76264655]
[1773170460721,4.00206939,86.239,86.161,3.76264655]
[1773170461116,9.21541499,86.28,86.156,3.76264655]
[1773170461117,4.00206939,86.207,86.156,3.76264655]
[1773170461716,9.21541499,86.22,86.167,10.444]
[1773170461911,9.21541499,86.22,86.156,3.76264655]
[1773170462112,4.00206939,86.219,86.156,3.76264655]
[1773170462318,4.00206939,86.209,86.14,3.76264655]
[1773170462716,4.00206939,86.199,86.107,20.903]
[1773170462912,4.00206939,86.18,86.13,10.448]
[1773170463216,4.00206939,86.18,86.124,3.76264655]
[1773170463415,4.00206939,86.198,86.124,3.76264655]
[1773170463912,4.00206939,86.198,86.1,9.21541499]
[1773170463913,162.365,86.221,86.083,23.51687124]
[1773170464118,162.332,86.239,86.091,23.51687124]
[1773170464319,9.21541499,86.19,86.091,23.51687124]
[1773170464522,10.44,86.195,86.122,23.53341992]
[1773170464720,9.21541499,86.2,86.122,23.53341992]
[1773170465022,9.21541499,86.22,86.04,9.21541499]
[1773170465023,10.45,86.119,86.063,23.53341992]
[1773170465223,9.21541499,86.12,86.046,23.53341992]